[Event "Live Chess"]
[Site "Chess.com"]
[Date "2024.06.01"]
[Round "-"]
[White "jumush"]
[Black "peteopeteo"]
[Result "1/2-1/2"]
[WhiteElo "1739"]
[BlackElo "1610"]
[TimeControl "300"]
[EndTime "10:22:13 PDT"]
[Termination "Game drawn by agreement"]

1. e4 {[%clk 0:04:56.7]} 1... c6 {[%clk 0:04:59.5]} 2. d4 {[%clk 0:04:51.9]}
2... d5 {[%clk 0:04:59.4]} 3. exd5 {[%clk 0:04:50.3]} 3... cxd5 {[%clk
0:04:59.3]} 4. Nf3 {[%clk 0:04:48.3]} 4... Nf6 {[%clk 0:04:59.2]} 5. Ne5 {[%clk
0:04:46.6]} 5... Nc6 {[%clk 0:04:56.3]} 6. Bb5 {[%clk 0:04:45.1]} 6... Bd7
{[%clk 0:04:53.4]} 7. Nxd7 {[%clk 0:04:43.1]} 7... Qxd7 {[%clk 0:04:49.6]} 8. c3
{[%clk 0:04:39.7]} 8... a6 {[%clk 0:04:42.6]} 9. Bd3 {[%clk 0:04:29.7]} 9... e6
{[%clk 0:04:39.2]} 10. O-O {[%clk 0:04:27.3]} 10... Bd6 {[%clk 0:04:37.5]} 11.
Nd2 {[%clk 0:04:25.1]} 11... Ne7 {[%clk 0:04:33.8]} 12. Nf3 {[%clk 0:04:19.8]}
12... Ng6 {[%clk 0:04:31.7]} 13. Re1 {[%clk 0:04:17.7]} 13... O-O {[%clk
0:04:27.8]} 14. Ne5 {[%clk 0:04:15.6]} 14... Qc7 {[%clk 0:04:24.1]} 15. Bg5
{[%clk 0:03:51.9]} 15... Nxe5 {[%clk 0:04:15.5]} 16. dxe5 {[%clk 0:03:46.9]}
16... Bxe5 {[%clk 0:04:14.7]} 17. Bxf6 {[%clk 0:03:37.8]} 17... Bxf6 {[%clk
0:04:12.7]} 18. Qh5 {[%clk 0:03:35.1]} 18... g6 {[%clk 0:04:05.8]} 19. Qh6
{[%clk 0:03:32.4]} 19... Bg7 {[%clk 0:03:56.2]} 20. Qh4 {[%clk 0:03:29.9]} 20...
Qd8 {[%clk 0:03:48.1]} 21. Qb4 {[%clk 0:03:18.1]} 21... b5 {[%clk 0:03:24.7]}
22. Re3 {[%clk 0:03:15]} 22... d4 {[%clk 0:03:12.3]} 23. cxd4 {[%clk 0:03:10.8]}
23... Qxd4 {[%clk 0:03:12.2]} 24. Qxd4 {[%clk 0:03:01.9]} 24... Bxd4 {[%clk
0:03:10.7]} 25. Re2 {[%clk 0:02:58.7]} 25... Rad8 {[%clk 0:03:06.1]} 26. Rd1
{[%clk 0:02:55.7]} 26... e5 {[%clk 0:02:51.6]} 27. Red2 {[%clk 0:02:53.2]} 27...
f5 {[%clk 0:02:42.8]} 28. a4 {[%clk 0:02:50.7]} 28... e4 {[%clk 0:02:31.6]} 29.
Bf1 {[%clk 0:02:44.6]} 29... Bf6 {[%clk 0:02:27.4]} 30. Rxd8 {[%clk 0:02:41.1]}
30... Rxd8 {[%clk 0:02:27.3]} 31. Rxd8+ {[%clk 0:02:38.1]} 31... Bxd8 {[%clk
0:02:27.2]} 32. axb5 {[%clk 0:02:36.2]} 32... axb5 {[%clk 0:02:21.7]} 33. Bxb5
{[%clk 0:02:33.4]} 33... Kf7 {[%clk 0:02:13]} 34. Bc4+ {[%clk 0:02:31.4]} 34...
Kf6 {[%clk 0:02:12]} 35. b4 {[%clk 0:02:27]} 35... Bb6 {[%clk 0:02:09.7]} 36.
Kf1 {[%clk 0:02:21.8]} 36... h6 {[%clk 0:02:02.9]} 37. Ke2 {[%clk 0:02:13.6]}
37... g5 {[%clk 0:01:59.3]} 38. h3 {[%clk 0:02:08.5]} 38... f4 {[%clk
0:01:57.9]} 39. b5 {[%clk 0:02:02.3]} 39... e3 {[%clk 0:01:55.4]} 40. fxe3
{[%clk 0:01:59.5]} 40... Bxe3 {[%clk 0:01:55.3]} 41. Kf3 {[%clk 0:01:54.8]}
41... Kf5 {[%clk 0:01:42.4]} 42. Bf7 {[%clk 0:01:51.2]} 42... Bb6 {[%clk
0:01:36.5]} 43. Be8 {[%clk 0:01:48.6]} 43... Be3 {[%clk 0:01:34.5]} 44. Bf7
{[%clk 0:01:46.1]} 1/2-1/2

[Event "Live Chess"]
[Site "Chess.com"]
[Date "2024.06.01"]
[Round "-"]
[White "Richardallis"]
[Black "TigerTank70"]
[Result "0-1"]
[WhiteElo "1931"]
[BlackElo "2178"]
[TimeControl "300"]
[EndTime "10:22:22 PDT"]
[Termination "TigerTank70 won on time"]

1. d4 {[%clk 0:04:56.4]} 1... d5 {[%clk 0:04:58.7]} 2. Nf3 {[%clk 0:04:55.7]}
2... c5 {[%clk 0:04:55.4]} 3. c3 {[%clk 0:04:54.5]} 3... e6 {[%clk 0:04:54.7]}
4. Bg5 {[%clk 0:04:52.1]} 4... Be7 {[%clk 0:04:52.6]} 5. Bxe7 {[%clk 0:04:49.2]}
5... Nxe7 {[%clk 0:04:52.5]} 6. e3 {[%clk 0:04:44.6]} 6... Nbc6 {[%clk
0:04:51.6]} 7. Bd3 {[%clk 0:04:20.6]} 7... Qb6 {[%clk 0:04:44.6]} 8. Qb3 {[%clk
0:04:18.9]} 8... c4 {[%clk 0:04:40.7]} 9. Qxb6 {[%clk 0:04:06.6]} 9... axb6
{[%clk 0:04:40.6]} 10. Bc2 {[%clk 0:04:05.1]} 10... b5 {[%clk 0:04:39.2]} 11.
O-O {[%clk 0:04:02.4]} 11... b4 {[%clk 0:04:38.1]} 12. a3 {[%clk 0:04:01.2]}
12... b3 {[%clk 0:04:33.9]} 13. Bd1 {[%clk 0:03:59.4]} 13... Ng6 {[%clk
0:04:18.2]} 14. Nfd2 {[%clk 0:03:02.7]} 14... b5 {[%clk 0:04:15.3]} 15. e4
{[%clk 0:02:59.3]} 15... b4 {[%clk 0:04:06.5]} 16. e5 {[%clk 0:02:48.7]} 16...
bxc3 {[%clk 0:03:25.3]} 17. bxc3 {[%clk 0:02:46.4]} 17... Ra4 {[%clk 0:03:13.2]}
18. f4 {[%clk 0:02:41.6]} 18... Bd7 {[%clk 0:03:10.1]} 19. g3 {[%clk 0:02:37.6]}
19... O-O {[%clk 0:03:08.5]} 20. Nf3 {[%clk 0:02:36.2]} 20... Nge7 {[%clk
0:03:02.4]} 21. Rf2 {[%clk 0:02:27.9]} 21... Nf5 {[%clk 0:02:57.7]} 22. Re2
{[%clk 0:02:25.1]} 22... Rfa8 {[%clk 0:02:55.6]} 23. Kf2 {[%clk 0:02:20.8]}
23... Na7 {[%clk 0:02:54.2]} 24. Rb2 {[%clk 0:02:04.8]} 24... Nb5 {[%clk
0:02:47.3]} 25. Bxb3 {[%clk 0:02:03.5]} 25... cxb3 {[%clk 0:02:45.8]} 26. Rxb3
{[%clk 0:02:02.6]} 26... f6 {[%clk 0:02:36.9]} 27. h3 {[%clk 0:01:52.3]} 27...
Ne7 {[%clk 0:02:30.3]} 28. g4 {[%clk 0:01:49.7]} 28... Nc8 {[%clk 0:02:10]} 29.
exf6 {[%clk 0:01:38.7]} 29... gxf6 {[%clk 0:02:08.4]} 30. g5 {[%clk 0:01:38.3]}
30... fxg5 {[%clk 0:02:03.7]} 31. Nxg5 {[%clk 0:01:35.7]} 31... Ncd6 {[%clk
0:02:00.7]} 32. Nd2 {[%clk 0:01:20]} 32... Rxa3 {[%clk 0:01:54.3]} 33. Rbxa3
{[%clk 0:01:19]} 33... Rxa3 {[%clk 0:01:54.1]} 34. Rg1 {[%clk 0:01:18.4]} 34...
Kh8 {[%clk 0:01:43.7]} 35. Ndf3 {[%clk 0:01:06.4]} 35... Ra2+ {[%clk 0:01:38.4]}
36. Kg3 {[%clk 0:00:57.7]} 36... h6 {[%clk 0:01:37.6]} 37. Ne5 {[%clk
0:00:54.9]} 37... Nf5+ {[%clk 0:01:29.9]} 38. Kg4 {[%clk 0:00:48.2]} 38... hxg5
{[%clk 0:01:29.1]} 39. Nxd7 {[%clk 0:00:46.1]} 39... gxf4 {[%clk 0:01:26]} 40.
Kxf4 {[%clk 0:00:44.4]} 40... Nxc3 {[%clk 0:01:20.5]} 41. Rg5 {[%clk 0:00:31.5]}
41... Ra7 {[%clk 0:00:57.8]} 42. Nf6 {[%clk 0:00:25.4]} 42... Nh6 {[%clk
0:00:27.9]} 43. Rg6 {[%clk 0:00:21.6]} 43... Rf7 {[%clk 0:00:24]} 44. Rxh6+
{[%clk 0:00:20.2]} 44... Kg7 {[%clk 0:00:23.1]} 45. Kg5 {[%clk 0:00:18.9]} 45...
Rxf6 {[%clk 0:00:20]} 46. Rxf6 {[%clk 0:00:17.9]} 46... Ne4+ {[%clk 0:00:19.3]}
47. Kf4 {[%clk 0:00:17.2]} 47... Nxf6 {[%clk 0:00:19.2]} 48. Ke5 {[%clk
0:00:15.3]} 48... Kf7 {[%clk 0:00:18.7]} 49. h4 {[%clk 0:00:13.4]} 49... Nd7+
{[%clk 0:00:18.1]} 50. Kd6 {[%clk 0:00:12.8]} 50... Nf8 {[%clk 0:00:16.4]} 51.
h5 {[%clk 0:00:11.8]} 51... Kf6 {[%clk 0:00:15.1]} 52. h6 {[%clk 0:00:09.7]}
52... Nh7 {[%clk 0:00:14.4]} 53. Kc5 {[%clk 0:00:08]} 53... Kf5 {[%clk
0:00:13.6]} 54. Kd6 {[%clk 0:00:07.2]} 54... Ng5 {[%clk 0:00:12.8]} 55. h7
{[%clk 0:00:05.9]} 55... Nxh7 {[%clk 0:00:11.7]} 56. Ke7 {[%clk 0:00:05.4]}
56... Ng5 {[%clk 0:00:10.1]} 57. Kd6 {[%clk 0:00:04.1]} 57... Nf3 {[%clk
0:00:10]} 58. Kc5 {[%clk 0:00:02.7]} 58... Ne1 {[%clk 0:00:09.3]} 59. Kd6 {[%clk
0:00:01.5]} 59... Nc2 {[%clk 0:00:09.2]} 60. Kc5 {[%clk 0:00:00.4]} 60... Kf6
{[%clk 0:00:08.7]} 0-1

[Event "Live Chess"]
[Site "Chess.com"]
[Date "2024.06.01"]
[Round "-"]
[White "seasidecastle27"]
[Black "Rusty_Bridges"]
[Result "1-0"]
[WhiteElo "1949"]
[BlackElo "1506"]
[TimeControl "300"]
[EndTime "10:22:29 PDT"]
[Termination "seasidecastle27 won by resignation"]

1. d4 {[%clk 0:04:57.2]} 1... d5 {[%clk 0:04:58.5]} 2. Nf3 {[%clk 0:04:56.4]}
2... e6 {[%clk 0:04:57.5]} 3. Bf4 {[%clk 0:04:55.4]} 3... Nf6 {[%clk 0:04:52.6]}
4. e3 {[%clk 0:04:54.5]} 4... Be7 {[%clk 0:04:51.8]} 5. Bd3 {[%clk 0:04:53.2]}
5... c5 {[%clk 0:04:47.3]} 6. c3 {[%clk 0:04:51.6]} 6... Nc6 {[%clk 0:04:45.7]}
7. Nbd2 {[%clk 0:04:50.2]} 7... Bd7 {[%clk 0:04:44.8]} 8. Qe2 {[%clk 0:04:48.8]}
8... c4 {[%clk 0:04:41.8]} 9. Bc2 {[%clk 0:04:47.3]} 9... b5 {[%clk 0:04:40.9]}
10. a3 {[%clk 0:04:44.8]} 10... a5 {[%clk 0:04:39.9]} 11. e4 {[%clk 0:04:43.2]}
11... dxe4 {[%clk 0:04:31.9]} 12. Nxe4 {[%clk 0:04:41.6]} 12... Nxe4 {[%clk
0:04:29.9]} 13. Qxe4 {[%clk 0:04:34]} 13... Bf6 {[%clk 0:04:22.6]} 14. Ne5
{[%clk 0:04:27.5]} 14... Nxe5 {[%clk 0:04:18.1]} 15. dxe5 {[%clk 0:04:25.1]}
15... Be7 {[%clk 0:04:15.5]} 16. O-O {[%clk 0:04:23]} 16... Qc7 {[%clk
0:04:14.2]} 17. Qxa8+ {[%clk 0:04:19.6]} 1-0

[Event "Live Chess"]
[Site "Chess.com"]
[Date "2024.06.01"]
[Round "-"]
[White "IanCalvert2"]
[Black "SirGerhard"]
[Result "0-1"]
[WhiteElo "1491"]
[BlackElo "2771"]
[TimeControl "300"]
[EndTime "10:22:41 PDT"]
[Termination "SirGerhard won by resignation"]

1. b3 {[%clk 0:04:56.4]} 1... d5 {[%clk 0:04:59]} 2. Bb2 {[%clk 0:04:55.5]} 2...
Bg4 {[%clk 0:04:58.1]} 3. h3 {[%clk 0:04:53]} 3... Bh5 {[%clk 0:04:57.4]} 4. d4
{[%clk 0:04:51.6]} 4... Nd7 {[%clk 0:04:55.8]} 5. Nf3 {[%clk 0:04:49.9]} 5...
Bxf3 {[%clk 0:04:54.2]} 6. exf3 {[%clk 0:04:48.1]} 6... e6 {[%clk 0:04:52.3]} 7.
f4 {[%clk 0:04:41.8]} 7... Bd6 {[%clk 0:04:50.7]} 8. g3 {[%clk 0:04:40.2]} 8...
h5 {[%clk 0:04:49.5]} 9. Bd3 {[%clk 0:04:37]} 9... h4 {[%clk 0:04:47.9]} 10. Qf3
{[%clk 0:04:34.9]} 10... hxg3 {[%clk 0:04:46.2]} 11. fxg3 {[%clk 0:04:33.1]}
11... Qf6 {[%clk 0:04:44.3]} 12. Nd2 {[%clk 0:04:27]} 12... Ne7 {[%clk 0:04:43]}
13. O-O-O {[%clk 0:04:18.3]} 13... O-O-O {[%clk 0:04:40.6]} 14. Qf2 {[%clk
0:04:02.7]} 14... g5 {[%clk 0:04:36.4]} 15. f5 {[%clk 0:03:40.7]} 15... exf5
{[%clk 0:04:31.3]} 16. g4 {[%clk 0:03:30.7]} 16... f4 {[%clk 0:04:28.6]} 17. Nf3
{[%clk 0:03:26.2]} 17... Ng6 {[%clk 0:04:18.4]} 18. Ne5 {[%clk 0:03:15.9]} 18...
Ngxe5 {[%clk 0:04:15.4]} 19. dxe5 {[%clk 0:03:09.2]} 19... Bxe5 {[%clk
0:04:14.7]} 20. Bxe5 {[%clk 0:03:05.6]} 20... Qxe5 {[%clk 0:04:12.8]} 21. Qxa7
{[%clk 0:03:02.6]} 21... Qe3+ {[%clk 0:03:59.9]} 22. Qxe3 {[%clk 0:02:46.1]}
22... fxe3 {[%clk 0:03:59.1]} 23. Rdf1 {[%clk 0:02:44.4]} 23... f6 {[%clk
0:03:53.4]} 24. Bf5 {[%clk 0:02:38.8]} 24... Rdf8 {[%clk 0:03:46.8]} 25. Rf3
{[%clk 0:02:27.8]} 25... c6 {[%clk 0:03:44.8]} 26. Rxe3 {[%clk 0:02:18.2]} 26...
Kd8 {[%clk 0:03:43.1]} 27. Rhe1 {[%clk 0:02:14.8]} 27... Ne5 {[%clk 0:03:42.2]}
28. c4 {[%clk 0:02:04.7]} 28... dxc4 {[%clk 0:03:39.3]} 29. bxc4 {[%clk
0:02:00.8]} 29... Kc7 {[%clk 0:03:38.5]} 30. Rb3 {[%clk 0:01:37.6]} 30... Rd8
{[%clk 0:03:34.9]} 31. Bc2 {[%clk 0:01:29.4]} 31... Rd4 {[%clk 0:03:30.7]} 32.
Rf1 {[%clk 0:01:21.8]} 32... Rf8 {[%clk 0:03:28.8]} 33. c5 {[%clk 0:00:54]}
33... Rc4 {[%clk 0:03:27.2]} 34. Kb2 {[%clk 0:00:49.9]} 34... Rxc5 {[%clk
0:03:26.3]} 35. Bf5 {[%clk 0:00:35.3]} 35... Nc4+ {[%clk 0:03:23.3]} 36. Ka1
{[%clk 0:00:30]} 36... Nd2 {[%clk 0:03:20.8]} 0-1

[Event "Live Chess"]
[Site "Chess.com"]
[Date "2024.06.01"]
[Round "-"]
[White "booktrunk"]
[Black "GerardATHart"]
[Result "1-0"]
[WhiteElo "1401"]
[BlackElo "1422"]
[TimeControl "300"]
[EndTime "10:22:42 PDT"]
[Termination "booktrunk won by resignation"]

1. d4 {[%clk 0:04:56]} 1... f5 {[%clk 0:04:57.9]} 2. Bf4 {[%clk 0:04:55.9]} 2...
Nf6 {[%clk 0:04:55.8]} 3. Nc3 {[%clk 0:04:55.8]} 3... d6 {[%clk 0:04:54.5]} 4.
e3 {[%clk 0:04:51.8]} 4... Nc6 {[%clk 0:04:48.8]} 5. Nf3 {[%clk 0:04:50.3]} 5...
g6 {[%clk 0:04:46.4]} 6. h3 {[%clk 0:04:46.6]} 6... h6 {[%clk 0:04:44.4]} 7. Bh2
{[%clk 0:04:44.2]} 7... Bg7 {[%clk 0:04:43.1]} 8. Bd3 {[%clk 0:04:41.3]} 8...
O-O {[%clk 0:04:38]} 9. O-O {[%clk 0:04:39.2]} 9... Re8 {[%clk 0:04:24.1]} 10.
Bc4+ {[%clk 0:04:28.1]} 10... Kh8 {[%clk 0:04:12.7]} 11. Nd5 {[%clk 0:04:24.1]}
11... e5 {[%clk 0:03:52.5]} 12. Nxf6 {[%clk 0:04:22.2]} 12... Bxf6 {[%clk
0:03:48.1]} 13. dxe5 {[%clk 0:04:21.1]} 13... dxe5 {[%clk 0:03:41.9]} 14. Qxd8
{[%clk 0:04:19]} 14... Rxd8 {[%clk 0:03:40.7]} 15. Rad1 {[%clk 0:04:15.6]} 15...
Re8 {[%clk 0:03:36.2]} 16. c3 {[%clk 0:04:09.6]} 16... Na5 {[%clk 0:03:34.2]}
17. Bb5 {[%clk 0:04:02.5]} 17... c6 {[%clk 0:03:32.5]} 18. Ba4 {[%clk
0:04:01.1]} 18... b5 {[%clk 0:03:31]} 19. Bc2 {[%clk 0:03:59.1]} 19... Be6
{[%clk 0:03:28.6]} 20. b3 {[%clk 0:03:56.1]} 20... e4 {[%clk 0:03:07.1]} 21. Nd2
{[%clk 0:03:46.8]} 21... Bxc3 {[%clk 0:03:04.7]} 22. Nb1 {[%clk 0:03:44.6]}
22... Bf6 {[%clk 0:02:59.8]} 23. Rd6 {[%clk 0:03:41.5]} 23... Rad8 {[%clk
0:02:53]} 24. Rxd8 {[%clk 0:03:38.1]} 24... Rxd8 {[%clk 0:02:51.5]} 25. Bc7
{[%clk 0:03:36.3]} 25... Nb7 {[%clk 0:02:36.3]} 26. Bxd8 {[%clk 0:03:34.1]}
26... Bxd8 {[%clk 0:02:34.4]} 27. Rd1 {[%clk 0:03:31.9]} 27... Bb6 {[%clk
0:02:24.7]} 28. Nd2 {[%clk 0:03:27.4]} 28... c5 {[%clk 0:02:22.6]} 29. Nf1
{[%clk 0:03:19.8]} 29... c4 {[%clk 0:02:20.8]} 30. bxc4 {[%clk 0:03:17.9]} 30...
bxc4 {[%clk 0:02:19.3]} 31. Rb1 {[%clk 0:03:07.4]} 31... Nc5 {[%clk 0:02:16.7]}
32. Nd2 {[%clk 0:02:57.8]} 32... c3 {[%clk 0:02:07.7]} 33. Nb3 {[%clk
0:02:53.9]} 33... Nd3 {[%clk 0:02:04]} 34. a3 {[%clk 0:02:44.8]} 34... Kg7
{[%clk 0:01:51.5]} 35. Nc1 {[%clk 0:02:42]} 35... Bc4 {[%clk 0:01:46.3]} 36. Ne2
{[%clk 0:02:34.5]} 36... Nb2 {[%clk 0:01:29.8]} 37. Nxc3 {[%clk 0:02:30.9]}
37... Nd3 {[%clk 0:01:18.8]} 38. Bxd3 {[%clk 0:02:25.2]} 38... Bxd3 {[%clk
0:01:17.4]} 39. Rd1 {[%clk 0:02:23.6]} 39... Ba5 {[%clk 0:01:15.3]} 40. Na2
{[%clk 0:02:14.2]} 40... Kf6 {[%clk 0:01:09.7]} 41. Nb4 {[%clk 0:02:10.2]} 41...
Bb5 {[%clk 0:00:51.8]} 42. Rd5 {[%clk 0:02:00.3]} 42... a6 {[%clk 0:00:49.8]}
43. Nxa6 {[%clk 0:01:58.6]} 43... Bxa6 {[%clk 0:00:44.2]} 44. Rxa5 {[%clk
0:01:57]} 44... Bc8 {[%clk 0:00:39.9]} 45. Ra8 {[%clk 0:01:53.9]} 45... Be6
{[%clk 0:00:37.3]} 46. Rb8 {[%clk 0:01:51.4]} 46... Ke7 {[%clk 0:00:34.3]} 47.
a4 {[%clk 0:01:50.1]} 47... Kd7 {[%clk 0:00:33]} 48. Rb7+ {[%clk 0:01:48.4]}
48... Kc6 {[%clk 0:00:31.2]} 49. Rg7 {[%clk 0:01:43.2]} 49... g5 {[%clk
0:00:29.7]} 50. Rg6 {[%clk 0:01:41.1]} 50... Kd5 {[%clk 0:00:24.8]} 51. a5
{[%clk 0:01:38.9]} 51... Bc8 {[%clk 0:00:22.8]} 52. a6 {[%clk 0:01:37.8]} 52...
f4 {[%clk 0:00:19.9]} 53. exf4 {[%clk 0:01:35.2]} 53... gxf4 {[%clk 0:00:18.8]}
54. Rxh6 {[%clk 0:01:34]} 54... e3 {[%clk 0:00:17.7]} 55. fxe3 {[%clk
0:01:31.8]} 55... fxe3 {[%clk 0:00:16.3]} 56. Kf1 {[%clk 0:01:31.1]} 56... Ke4
{[%clk 0:00:13.6]} 57. Ke1 {[%clk 0:01:29.7]} 57... Kd3 {[%clk 0:00:10.8]} 58.
a7 {[%clk 0:01:27.3]} 58... Bb7 {[%clk 0:00:09.3]} 59. Rb6 {[%clk 0:01:24.9]}
59... Bxg2 {[%clk 0:00:07.4]} 60. Rb8 {[%clk 0:01:22.5]} 60... e2 {[%clk
0:00:05.6]} 61. a8=Q {[%clk 0:01:19.5]} 1-0

[Event "Live Chess"]
[Site "Chess.com"]
[Date "2024.06.01"]
[Round "-"]
[White "LanceMaster23"]
[Black "missedJariChance"]
[Result "1/2-1/2"]
[WhiteElo "1808"]
[BlackElo "1348"]
[TimeControl "300"]
[EndTime "10:22:44 PDT"]
[Termination "Game drawn - timeout vs insufficient material"]

1. Nf3 {[%clk 0:04:57.7]} 1... e6 {[%clk 0:04:54.7]} 2. d4 {[%clk 0:04:55.9]}
2... d5 {[%clk 0:04:53.4]} 3. Bf4 {[%clk 0:04:55.3]} 3... c5 {[%clk 0:04:46.4]}
4. c3 {[%clk 0:04:53.5]} 4... Nc6 {[%clk 0:04:44]} 5. e3 {[%clk 0:04:52.3]} 5...
Bd6 {[%clk 0:04:33.9]} 6. Bg3 {[%clk 0:04:50.8]} 6... Nf6 {[%clk 0:04:30.9]} 7.
Nbd2 {[%clk 0:04:49.2]} 7... O-O {[%clk 0:04:28.4]} 8. Be2 {[%clk 0:04:47.1]}
8... Re8 {[%clk 0:04:25.5]} 9. O-O {[%clk 0:04:43.5]} 9... e5 {[%clk 0:04:19.9]}
10. dxe5 {[%clk 0:04:43.4]} 10... Nxe5 {[%clk 0:04:17.1]} 11. Nxe5 {[%clk
0:04:41.8]} 11... Bxe5 {[%clk 0:04:15]} 12. Nf3 {[%clk 0:04:41.2]} 12... Bxg3
{[%clk 0:04:05.1]} 13. hxg3 {[%clk 0:04:41.1]} 13... Be6 {[%clk 0:03:58.8]} 14.
Qc2 {[%clk 0:04:32.1]} 14... h6 {[%clk 0:03:54.4]} 15. Rad1 {[%clk 0:04:27.7]}
15... Qc7 {[%clk 0:03:49.3]} 16. c4 {[%clk 0:04:23.4]} 16... Rad8 {[%clk
0:03:42.7]} 17. cxd5 {[%clk 0:04:21.3]} 17... Nxd5 {[%clk 0:03:35.3]} 18. a3
{[%clk 0:03:49.5]} 18... Qe7 {[%clk 0:03:13]} 19. Rc1 {[%clk 0:03:32.9]} 19...
b6 {[%clk 0:03:10.4]} 20. Rfd1 {[%clk 0:03:29.7]} 20... Qf6 {[%clk 0:02:58.3]}
21. Qa4 {[%clk 0:03:14.5]} 21... Qxb2 {[%clk 0:02:46.9]} 22. Rc2 {[%clk
0:02:02.1]} 22... Qf6 {[%clk 0:02:22.7]} 23. Qxa7 {[%clk 0:01:55]} 23... Nxe3
{[%clk 0:02:13.4]} 24. Rxd8 {[%clk 0:01:32.5]} 24... Rxd8 {[%clk 0:02:07.1]} 25.
fxe3 {[%clk 0:01:31]} 25... Bb3 {[%clk 0:01:57.9]} 26. Rd2 {[%clk 0:01:19.8]}
26... Qa1+ {[%clk 0:01:49.4]} 27. Kf2 {[%clk 0:01:17]} 27... Rxd2 {[%clk
0:01:36.1]} 28. Nxd2 {[%clk 0:01:11.5]} 28... Be6 {[%clk 0:01:34.6]} 29. Qxb6
{[%clk 0:00:50.5]} 29... Qxa3 {[%clk 0:01:32.3]} 30. Ne4 {[%clk 0:00:47.6]}
30... c4 {[%clk 0:01:25.4]} 31. Qd8+ {[%clk 0:00:45.9]} 31... Kh7 {[%clk
0:01:23.6]} 32. Nd6 {[%clk 0:00:38.3]} 32... c3 {[%clk 0:01:19.1]} 33. Bd3+
{[%clk 0:00:37.8]} 33... g6 {[%clk 0:01:16.1]} 34. Ne4 {[%clk 0:00:29.5]} 34...
Qb2+ {[%clk 0:01:12.1]} 35. Kf3 {[%clk 0:00:28.3]} 35... c2 {[%clk 0:01:09.8]}
36. Bxc2 {[%clk 0:00:21.7]} 36... Qxc2 {[%clk 0:01:08.6]} 37. Nf6+ {[%clk
0:00:21.4]} 37... Kg7 {[%clk 0:01:03.2]} 38. Ne8+ {[%clk 0:00:21.1]} 38... Kh7
{[%clk 0:00:59.7]} 39. Qf6 {[%clk 0:00:19.8]} 39... Qf5+ {[%clk 0:00:47.9]} 40.
Qxf5 {[%clk 0:00:18.4]} 40... Bxf5 {[%clk 0:00:46.3]} 41. Nf6+ {[%clk
0:00:18.3]} 41... Kg7 {[%clk 0:00:44.8]} 42. Nd5 {[%clk 0:00:17.2]} 42... Bc8
{[%clk 0:00:43.1]} 43. e4 {[%clk 0:00:16.6]} 43... Bb7 {[%clk 0:00:40.9]} 44.
Ne3 {[%clk 0:00:16.5]} 44... Kf6 {[%clk 0:00:37.6]} 45. Nc4 {[%clk 0:00:15.9]}
45... Kg5 {[%clk 0:00:35.1]} 46. Nd6 {[%clk 0:00:14.9]} 46... Ba8 {[%clk
0:00:33.5]} 47. Nxf7+ {[%clk 0:00:14.4]} 47... Kf6 {[%clk 0:00:31.1]} 48. Nd6
{[%clk 0:00:14.3]} 48... Ke5 {[%clk 0:00:27.6]} 49. Nc4+ {[%clk 0:00:13.4]}
49... Kf6 {[%clk 0:00:25.1]} 50. Kf4 {[%clk 0:00:11.6]} 50... h5 {[%clk
0:00:22.8]} 51. e5+ {[%clk 0:00:10.7]} 51... Ke6 {[%clk 0:00:20.4]} 52. g4
{[%clk 0:00:10.3]} 52... hxg4 {[%clk 0:00:18.9]} 53. Kxg4 {[%clk 0:00:10.2]}
53... Bxg2 {[%clk 0:00:17]} 54. Kg5 {[%clk 0:00:09]} 54... Bd5 {[%clk
0:00:15.5]} 55. Ne3 {[%clk 0:00:06.7]} 55... Kxe5 {[%clk 0:00:13.7]} 56. Ng4+
{[%clk 0:00:06.6]} 56... Ke6 {[%clk 0:00:11.9]} 57. Nh6 {[%clk 0:00:06.5]} 57...
Be4 {[%clk 0:00:10.7]} 58. Ng4 {[%clk 0:00:06.2]} 58... Ke7 {[%clk 0:00:09.4]}
59. Nf2 {[%clk 0:00:06.1]} 59... Bf5 {[%clk 0:00:08.3]} 60. Nd1 {[%clk
0:00:05.7]} 60... Kd6 {[%clk 0:00:07.9]} 61. Ne3 {[%clk 0:00:05.6]} 61... Kc5
{[%clk 0:00:06.4]} 62. Ng2 {[%clk 0:00:05.5]} 62... Kd4 {[%clk 0:00:05.5]} 63.
Nf4 {[%clk 0:00:05.4]} 63... Ke3 {[%clk 0:00:04.8]} 64. Nh3 {[%clk 0:00:05.2]}
64... Kf3 {[%clk 0:00:03.6]} 65. Ng1+ {[%clk 0:00:05.1]} 65... Kg3 {[%clk
0:00:03.1]} 66. Ne2+ {[%clk 0:00:04.6]} 66... Kf2 {[%clk 0:00:01.9]} 67. Nd4
{[%clk 0:00:04.5]} 67... Ke3 {[%clk 0:00:01.1]} 68. Nc6 {[%clk 0:00:04.1]}
1/2-1/2

[Event "Live Chess"]
[Site "Chess.com"]
[Date "2024.06.01"]
[Round "-"]
[White "Grace6363"]
[Black "dl_chess"]
[Result "0-1"]
[WhiteElo "1109"]
[BlackElo "1170"]
[TimeControl "300"]
[EndTime "10:22:46 PDT"]
[Termination "dl_chess won by checkmate"]

1. d4 {[%clk 0:04:57.1]} 1... Nf6 {[%clk 0:04:57.9]} 2. c4 {[%clk 0:04:56]} 2...
g6 {[%clk 0:04:56.3]} 3. Nc3 {[%clk 0:04:54.7]} 3... Bg7 {[%clk 0:04:55.3]} 4.
Nf3 {[%clk 0:04:54.2]} 4... d6 {[%clk 0:04:54.4]} 5. Bg5 {[%clk 0:04:52.9]} 5...
O-O {[%clk 0:04:51.9]} 6. e4 {[%clk 0:04:52.1]} 6... Nc6 {[%clk 0:04:37.3]} 7.
Be2 {[%clk 0:04:49.2]} 7... e5 {[%clk 0:04:34]} 8. d5 {[%clk 0:04:48]} 8... Ne7
{[%clk 0:04:31.1]} 9. O-O {[%clk 0:04:45.1]} 9... Nd7 {[%clk 0:04:26.8]} 10. Nd2
{[%clk 0:04:37.8]} 10... f5 {[%clk 0:04:23.6]} 11. f4 {[%clk 0:04:27.6]} 11...
fxe4 {[%clk 0:04:07.4]} 12. Ndxe4 {[%clk 0:04:24.4]} 12... exf4 {[%clk
0:03:54.6]} 13. Bxf4 {[%clk 0:04:22.7]} 13... Ne5 {[%clk 0:03:48]} 14. Bxe5
{[%clk 0:04:20.4]} 14... Bxe5 {[%clk 0:03:41.4]} 15. Rxf8+ {[%clk 0:04:18.5]}
15... Qxf8 {[%clk 0:03:39.6]} 16. Qf1 {[%clk 0:04:16.1]} 16... Bf5 {[%clk
0:03:23]} 17. Bg4 {[%clk 0:04:01.8]} 17... Bxg4 {[%clk 0:03:10.5]} 18. h3 {[%clk
0:03:59.2]} 18... Bf5 {[%clk 0:03:09]} 19. g4 {[%clk 0:03:55.1]} 19... Bd4+
{[%clk 0:03:03.6]} 20. Kh2 {[%clk 0:03:51.9]} 20... Bxe4 {[%clk 0:02:46.3]} 21.
Nxe4 {[%clk 0:03:49]} 21... Qg7 {[%clk 0:02:33]} 22. Qd3 {[%clk 0:03:33.8]}
22... Rf8 {[%clk 0:02:29.4]} 23. Re1 {[%clk 0:03:25.1]} 23... Qe5+ {[%clk
0:02:13.2]} 24. Kh1 {[%clk 0:03:12.9]} 24... Qg7 {[%clk 0:01:56.8]} 25. Ng5
{[%clk 0:03:06.1]} 25... Rf2 {[%clk 0:01:10.4]} 26. Rxe7 {[%clk 0:02:59.7]}
26... Qxe7 {[%clk 0:01:08]} 27. Qxd4 {[%clk 0:02:59]} 27... Qe1# {[%clk
0:01:05.8]} 0-1